fUSD/lending_fUSD_20241227
["ID","MTS","AMOUNT","RATE_DAILY","PERIOD"]
[346831936,1735312245521,-1174.87,0.0001104,2]
[346831938,1735312245535,-932.19,0.0001104,2]
[346831940,1735312245545,-500.0,0.0001104,2]
[346831942,1735312245555,-1438.71,0.0001104,2]
[346831944,1735312245564,-636.88,0.0001104,2]
[346831946,1735312245574,-500.0,0.0001104,2]
[346831948,1735312245584,-500.0,0.0001104,2]
[346831950,1735312245595,-500.0,0.0001104,2]
[346831952,1735312245605,-500.0,0.0001104,2]
[346831954,1735312245615,-1042.04,0.0001104,2]
[346831956,1735312245625,-500.0,0.0001104,2]
[346831958,1735312245635,-500.0,0.0001104,2]
[346831960,1735312245645,-726.02,0.0001104,2]
[346831962,1735312245655,-500.0,0.0001104,2]
[346831964,1735312245664,-500.0,0.0001104,2]
[346831966,1735312245674,-500.0,0.0001104,2]
[346831968,1735312245684,-2054.17,0.0001104,2]
[346831971,1735312245694,-500.0,0.0001104,2]
[346831973,1735312245704,-500.0,0.0001104,2]
[346831975,1735312245714,-917.25,0.0001104,2]
[346831977,1735312245724,-500.0,0.0001104,2]
[346831979,1735312245734,-581.47,0.0001104,2]
[346831980,1735312245744,-1364.9,0.0001104,2]
[346831981,1735312245754,-614.37,0.0001104,2]
[346831982,1735312245763,-1726.87,0.0001104,2]
[346831983,1735312245773,-500.0,0.0001104,2]
[346831984,1735312245785,-1627.56,0.0001104,2]
[346831985,1735312245796,-500.0,0.0001104,2]
[346831986,1735312245806,-500.0,0.0001104,2]
[346831987,1735312245816,-700.67,0.0001104,2]
[346831988,1735312245827,-500.0,0.0001104,2]
[346831990,1735312245839,-2285.16,0.0001104,2]
[346831992,1735312245849,-806.51,0.0001104,2]
[346831996,1735312245859,-500.0,0.0001104,2]
[346831998,1735312245868,-675.36,0.0001104,2]
[346832000,1735312245879,-500.0,0.0001104,2]
[346832002,1735312245889,-500.0,0.0001104,2]
[346832004,1735312245899,-500.0,0.0001104,2]
[346832006,1735312245909,-1144.26,0.0001104,2]
[346832008,1735312245919,-993.63,0.0001104,2]
[346832010,1735312245929,-500.0,0.0001104,2]
[346832012,1735312245939,-521.81,0.0001104,2]
[346832014,1735312245948,-1046.55,0.0001104,2]
[346832016,1735312245959,-500.0,0.0001104,2]
[346832018,1735312245968,-500.0,0.0001104,2]
[346832020,1735312245979,-500.0,0.0001104,2]
[346832022,1735312245988,-1296.37,0.0001104,2]
[346832024,1735312245998,-753.56,0.0001104,2]
[346832026,1735312246009,-1985.68,0.0001104,2]
[346832028,1735312246018,-1451.04,0.0001104,2]
[346832030,1735312246031,-500.0,0.0001104,2]
[346832032,1735312246041,-500.0,0.0001104,2]
[346832034,1735312246052,-1024.09,0.0001104,2]
[346832036,1735312246062,-500.0,0.0001104,2]
[346832038,1735312246073,-926.89,0.0001104,2]
[346832040,1735312246084,-500.0,0.0001104,2]
[346832042,1735312246094,-500.0,0.0001104,2]
[346832044,1735312246104,-500.0,0.0001104,2]
[346832046,1735312246114,-1009.95,0.0001104,2]
[346832048,1735312246124,-1733.52,0.0001104,2]
[346832050,1735312246134,-524.47,0.0001104,2]
[346832053,1735312246144,-500.0,0.0001104,2]
[346832055,1735312246154,-1293.8,0.0001104,2]
[346832057,1735312246164,-500.0,0.0001104,2]
[346832059,1735312246174,-500.0,0.0001104,2]
[346832061,1735312246185,-606.75,0.0001104,2]
[346832063,1735312246195,-1283.37,0.0001104,2]
[346832065,1735312246205,-1602.33,0.0001104,2]
[346832067,1735312246215,-631.18025733,0.0001104,2]
[346832069,1735312246224,-500.0,0.0001104,2]
[346832071,1735312246234,-855.0,0.0001104,2]
[346832073,1735312246243,-500.0,0.0001104,2]
[346832075,1735312246253,-935.88,0.0001104,2]
[346832077,1735312246263,-500.0,0.0001104,2]
[346832079,1735312246273,-500.0,0.0001104,2]
[346832081,1735312246284,-500.0,0.0001104,2]
[346832083,1735312246294,-1381.97,0.0001104,2]
[346832085,1735312246304,-1611.39,0.0001104,2]
[346832087,1735312246314,-416.38631531,0.0001104,2]
[346832089,1735312246324,-2689.39,0.0001104,2]
[346832091,1735312246334,-500.0,0.0001104,2]
[346832093,1735312246344,-500.0,0.0001104,2]
[346832095,1735312246354,-573.74,0.0001104,2]
[346832097,1735312246364,-1045.78,0.0001104,2]
[346832099,1735312246374,-500.0,0.0001104,2]
[346832101,1735312246384,-682.35,0.0001104,2]
[346832103,1735312246394,-398.98336734,0.0001104,2]
[346832106,1735312246404,-500.0,0.0001104,2]
[346832108,1735312246415,-1243.64,0.0001104,2]
[346832110,1735312246426,-500.0,0.0001104,2]
[346832112,1735312246436,-1173.76,0.0001104,2]
[346832114,1735312246446,-500.0,0.0001104,2]
[346832116,1735312246457,-500.0,0.0001104,2]
[346832118,1735312246467,-500.0,0.0001104,2]
[346832120,1735312246477,-1530.57,0.0001104,2]
[346832122,1735312246487,-500.0,0.0001104,2]
[346832124,1735312246495,-500.0,0.0001104,2]
[346832126,1735312246504,-1562.77,0.0001104,2]
[346832128,1735312246513,-500.0,0.0001104,2]
[346832130,1735312246522,-925.02,0.0001104,2]
[346832132,1735312246532,-1872.47,0.0001104,2]
[346832134,1735312246541,-397.68148325,0.0001104,2]
[346832136,1735312246550,-500.0,0.0001104,2]
[346832138,1735312246560,-500.0,0.0001104,2]
[346832140,1735312246570,-1621.33,0.0001104,2]
[346832142,1735312246579,-500.0,0.0001104,2]
[346832144,1735312246590,-556.1,0.0001104,2]
[346832146,1735312246600,-500.0,0.0001104,2]
[346832148,1735312246610,-1503.91,0.0001104,2]
[346832150,1735312246619,-500.0,0.0001104,2]
[346832152,1735312246630,-1063.33,0.0001104,2]
[346832155,1735312246639,-1423.2,0.0001104,2]
[346832157,1735312246649,-500.0,0.0001104,2]
[346832159,1735312246659,-1085.91,0.0001104,2]
[346832161,1735312246670,-2285.34,0.0001104,2]
[346832163,1735312246680,-1018.9,0.0001104,2]
[346832165,1735312246689,-1249.98,0.0001104,2]
[346832167,1735312246699,-854.58,0.0001104,2]
[346832169,1735312246709,-1188.21,0.0001104,2]
[346832171,1735312246719,-1181.91,0.0001104,2]
[346832173,1735312246728,-500.0,0.0001104,2]
[346832175,1735312246738,-629.8,0.0001104,2]
[346832177,1735312246748,-1507.45,0.0001104,2]
[346832179,1735312246758,-1055.05,0.0001104,2]
[346832181,1735312246767,-500.0,0.0001104,2]
[346832183,1735312246777,-500.0,0.0001104,2]
[346832185,1735312246789,-650.69,0.0001104,2]
[346832187,1735312246799,-1455.1,0.0001104,2]
[346832189,1735312246808,-500.0,0.0001104,2]
[346832191,1735312246818,-500.0,0.0001104,2]
[346832193,1735312246827,-500.0,0.0001104,2]
[346832195,1735312246840,-500.0,0.0001104,2]
[346832197,1735312246851,-500.0,0.0001104,2]
[346832199,1735312246860,-970.82,0.0001104,2]
[346832201,1735312246871,-550.5838133,0.0001104,2]
[346832276,1735312247591,-591.8761867,0.0001104,2]
[346832278,1735312247601,-500.0,0.0001104,2]
[346832280,1735312247611,-1692.48,0.0001104,2]
[346832282,1735312247621,-17023.26,0.0001104,2]
[346832284,1735312247631,-639.91,0.0001104,2]
[346832286,1735312247640,-500.0,0.0001104,2]
[346832288,1735312247651,-500.0,0.0001104,2]
[346832290,1735312247660,-361.85026839,0.0001104,2]
[346832292,1735312247670,-588.4,0.0001104,2]
[346832294,1735312247680,-1522.63,0.0001104,2]
[346832296,1735312247689,-500.0,0.0001104,2]
[346832298,1735312247698,-571.15,0.0001104,2]
[346832300,1735312247708,-1205.78,0.0001104,2]
[346832302,1735312247718,-1915.12,0.0001104,2]
[346832304,1735312247728,-500.0,0.0001104,2]
[346832306,1735312247738,-7782.88482199,0.0001104,2]
[346832308,1735312247750,-2695.53517801,0.0001104,2]
[346832310,1735312247760,-1138.95,0.0001104,2]
[346832312,1735312247769,-1691.03,0.0001104,2]
[346832314,1735312247779,-3510.01,0.0001104,2]
[346832316,1735312247793,-500.0,0.0001104,2]
[346832318,1735312247806,-500.0,0.0001104,2]
[346832320,1735312247816,-500.0,0.0001104,2]
[346832322,1735312247826,-500.0,0.0001104,2]
[346832324,1735312247839,-2423.31,0.0001104,2]
[346832326,1735312247848,-500.0,0.0001104,2]
[346832328,1735312247858,-1341.18,0.0001104,2]
[346832329,1735312247868,-500.0,0.0001104,2]
[346832330,1735312247879,-500.0,0.0001104,2]
[346832331,1735312247888,-500.0,0.0001104,2]
[346832332,1735312247898,-654.02,0.0001104,2]
[346832333,1735312247907,-500.0,0.0001104,2]
[346832334,1735312247918,-500.0,0.0001104,2]
[346832335,1735312247928,-2564.99,0.0001104,2]
[346832336,1735312247938,-1137.28,0.0001104,2]
[346832337,1735312247948,-500.0,0.0001104,2]
[346832339,1735312247958,-2477.27,0.0001104,2]
[346832341,1735312247967,-500.0,0.0001104,2]
[346832343,1735312247977,-1089.22,0.0001104,2]
[346832345,1735312247986,-1151.38,0.0001104,2]
[346832347,1735312247996,-570.28,0.0001104,2]
[346832349,1735312248005,-676.29,0.0001104,2]
[346832351,1735312248015,-846.42,0.0001104,2]
[346832353,1735312248025,-500.0,0.0001104,2]
[346832355,1735312248037,-500.0,0.0001104,2]
[346832357,1735312248046,-500.0,0.0001104,2]
[346832359,1735312248056,-500.0,0.0001104,2]
[346832361,1735312248066,-5009.91,0.0001104,2]
[346832363,1735312248076,-1157.9,0.0001104,2]
[346832365,1735312248085,-500.0,0.0001104,2]
[346832367,1735312248095,-500.0,0.0001104,2]
[346832369,1735312248106,-500.0,0.0001104,2]
[346832371,1735312248116,-500.0,0.0001104,2]
[346832373,1735312248126,-500.0,0.0001104,2]
[346832375,1735312248135,-604.95,0.0001104,2]
[346832377,1735312248145,-1013.96,0.0001104,2]
[346832379,1735312248154,-382.02265382,0.0001104,2]
[346832381,1735312248164,-531.53,0.0001104,2]
[346832383,1735312248173,-674.09,0.0001104,2]
[346832385,1735312248183,-1066.62,0.0001104,2]
[346832387,1735312248192,-983.41,0.0001104,2]
[346832389,1735312248201,-863.98,0.0001104,2]
[346832391,1735312248211,-500.0,0.0001104,2]
[346832393,1735312248220,-1395.32,0.0001104,2]
[346832395,1735312248230,-500.0,0.0001104,2]
[346832397,1735312248239,-468.17503206,0.0001104,2]
[346832561,1735312250489,-476.4761657,0.00010006,2]
[346832563,1735312250501,-523.5238343,0.00010006,2]
[346832565,1735312250511,-500.0,0.00010765,2]
[346832567,1735312250520,-1752.52417298,0.00010765,2]
[346832569,1735312250534,-1838.28582702,0.00010765,2]
[346832571,1735312250544,-500.0,0.00010765,2]
[346832573,1735312250554,-2208.71,0.00010767,2]
[346832575,1735312250564,-500.0,0.00011038,2]
[346832577,1735312250573,-500.0,0.00011039,2]
[346832579,1735312250583,-3590.81,0.00011039,2]
[346832581,1735312250592,-500.0,0.00011039,2]
[346832583,1735312250602,-2308.54350621,0.0001104,2]
[346832585,1735312250613,-265.39350001,0.0001104,2]
[346832686,1735312251590,-26465.71796172,0.0001104,2]
[346832688,1735312251600,-500.0,0.0001104,2]
[346832690,1735312251610,-500.0,0.0001104,2]
[346832692,1735312251619,-500.0,0.0001104,2]
[346832694,1735312251628,-500.0,0.0001104,2]
[346832696,1735312251639,-770.59,0.0001104,2]
[346832698,1735312251648,-500.0,0.0001104,2]
[346832700,1735312251658,-2354.56,0.0001104,2]
[346832702,1735312251667,-500.0,0.0001104,2]
[346832704,1735312251676,-500.0,0.0001104,2]
[346832706,1735312251686,-674.62,0.0001104,2]
[346832708,1735312251695,-627.55,0.0001104,2]
[346832710,1735312251705,-2041.79,0.0001104,2]
[346832712,1735312251714,-2434.05,0.0001104,2]
[346832714,1735312251724,-741.47,0.0001104,2]
[346832716,1735312251733,-500.0,0.0001104,2]
[346832718,1735312251743,-500.0,0.0001104,2]
[346832719,1735312251752,-500.0,0.0001104,2]
[346832721,1735312251762,-2754.4,0.0001104,2]
[346832724,1735312251772,-500.0,0.0001104,2]
[346832726,1735312251781,-500.0,0.0001104,2]
[346832728,1735312251793,-6184.6,0.0001104,2]
[346832730,1735312251802,-2503.7,0.0001104,2]
[346832732,1735312251811,-500.0,0.0001104,2]
[346832733,1735312251820,-3693.61,0.0001104,2]
[346832736,1735312251830,-500.0,0.0001104,2]
[346832738,1735312251839,-500.0,0.0001104,2]
[346832739,1735312251849,-260.83297247,0.00011041,2]
[346832742,1735312251860,-297.95717223,0.00011041,2]
[346832744,1735312251870,-513.74326195,0.00011041,2]
[346832746,1735312251883,-500.0,0.00011041,2]
[346832748,1735312251894,-432.92301899,0.00011041,2]
[346832749,1735312251904,-500.0,0.00011041,2]
[346832752,1735312251915,-500.0,0.00011041,2]
[346832754,1735312251932,-500.0,0.00011041,2]
[346832757,1735312251945,-579.98757296,0.00011041,2]
[346832759,1735312251955,-509.06350003,0.00011041,2]
[346832761,1735312251965,-1962.27,0.00011041,2]
[346832763,1735312251975,-2201.95,0.00011041,2]
[346832765,1735312251985,-3650.95,0.00011041,2]
[346832767,1735312251994,-13523.19,0.00011041,2]
[346832769,1735312252005,-3387.37,0.00011041,2]
[346832771,1735312252016,-500.0,0.00011041,2]
[346832773,1735312252026,-500.0,0.00011041,2]
[346832775,1735312252037,-1625.71,0.00011041,2]
[346832777,1735312252047,-500.0,0.00011041,2]
[346832779,1735312252057,-3561.34,0.00011041,2]
[346832781,1735312252067,-1195.31,0.00011041,2]
[346832783,1735312252077,-1297.57,0.00011041,2]
[346832785,1735312252086,-2036.8,0.00011041,2]
[346832787,1735312252096,-1473.53,0.00011041,2]
[346832789,1735312252105,-13301.9,0.00011041,2]
[346832791,1735312252114,-1208.45,0.00011041,2]
[346832793,1735312252124,-1258.03,0.00011041,2]
[346832795,1735312252134,-1929.0,0.00011041,2]
[346832797,1735312252143,-536.9,0.00011041,2]
[346832799,1735312252152,-3542.81,0.00011041,2]
[346832801,1735312252162,-1652.17,0.00011041,2]
[346832803,1735312252172,-7524.0,0.00011041,2]
[346832805,1735312252182,-1455.0,0.00011041,2]
[346832807,1735312252193,-500.0,0.00011041,2]
[346832809,1735312252205,-2018.54,0.00011041,2]
[346832811,1735312252215,-919.62,0.00011041,2]
[346832813,1735312252227,-3628.55,0.00011041,2]
[346832815,1735312252238,-2177.98,0.00011041,2]
[346832817,1735312252248,-666.09,0.00011041,2]
[346832819,1735312252258,-3521.93,0.00011041,2]
[346832822,1735312252269,-1528.89,0.00011041,2]
[346832824,1735312252279,-2424.85,0.00011041,2]
[346832826,1735312252293,-989.36,0.00011041,2]
[346832828,1735312252303,-1517.86,0.00011041,2]
[346832830,1735312252312,-1159.65,0.00011041,2]
[346832832,1735312252322,-1646.9,0.00011041,2]
[346832834,1735312252331,-9330.83,0.00011041,2]
[346832836,1735312252341,-1177.65,0.00011041,2]
[346832838,1735312252351,-3068.44,0.00011041,2]
[346832840,1735312252360,-2248.19,0.00011041,2]
[346832842,1735312252371,-208.79047057,0.00011041,2]
[346832844,1735312252381,-2736.68,0.00011041,2]
[346832846,1735312252391,-935.13,0.00011041,2]
[346832848,1735312252402,-3448.7,0.00011041,2]
[346832850,1735312252411,-2858.42,0.00011041,2]
[346832852,1735312252421,-1112.51,0.00011041,2]
[346832854,1735312252431,-2323.3,0.00011041,2]
[346832856,1735312252441,-1311.93,0.00011041,2]
[346832858,1735312252451,-952.03,0.00011041,2]
[346832860,1735312252461,-651.91,0.00011041,2]
[346832862,1735312252471,-1885.78,0.00011041,2]
[346832864,1735312252480,-500.0,0.00011041,2]
[346832866,1735312252490,-859.59,0.00011041,2]
[346832868,1735312252500,-1281.51,0.00011041,2]
[346832870,1735312252510,-1185.94,0.00011041,2]
[346832872,1735312252519,-500.0,0.00011041,2]
[346832874,1735312252529,-2208.71,0.00011041,2]
[346832876,1735312252538,-500.0,0.00011041,2]
[346832878,1735312252548,-2128223.41167702,0.00011042,2]
[346832881,1735312252562,-728.93469352,0.00011042,2]
[346832883,1735312252580,-145249.3244161,0.00011042,2]
[346832886,1735312252592,-5733.92933904,0.00011042,2]
[346832950,1735312253309,-500.0,0.00010765,2]
[346832952,1735312253318,-500.0,0.00011039,2]
[346832954,1735312253329,-3798.6831098,0.00011042,2]
[346832962,1735312253396,-4781.7444,0.00011042,2]
[346832967,1735312253428,-653.92449163,0.00011042,2]
[346832969,1735312253441,-2585.10518997,0.00011042,2]
[346832971,1735312253451,-2359.98501917,0.00011042,2]
[346833113,1735312254816,1350.0,8.9e-05,10]
[346833252,1735312459030,5004.9495989,0.00012,10]
[346833253,1735312602430,849.99188663,0.0002,120]
[346833254,1735312889369,509.56,8.219e-05,2]
[346833367,1735313148070,4042.85371695,7e-05,2]
[346833388,1735313432211,-493.76,9.771e-05,2]
[346833389,1735313432221,-1000.0,9.87e-05,2]
[346833390,1735313432231,-250.0,9.885e-05,2]
[346833391,1735313432240,-236.96,9.897e-05,2]
[346833392,1735313432250,-250.0,9.964e-05,2]
[346833393,1735313432260,-1079.27995,9.964e-05,2]
[346833394,1735313432271,-477.556,9.964e-05,2]
[346833395,1735313432298,-8633.36073802,9.964e-05,2]
[346833396,1735313432310,-950.95,9.964e-05,2]
[346833397,1735313432327,-9491.39142,9.964e-05,2]
[346833398,1735313432340,-628.9196118,9.964e-05,2]
[346833399,1735313432351,-1703.7412239,9.964e-05,2]
[346833400,1735313432362,-471.32155123,9.964e-05,2]
[346833401,1735313432408,-1256.85614415,9.964e-05,2]
[346833402,1735313432419,-6058.09964512,9.964e-05,2]
[346833403,1735313432430,-16800.01517801,9.964e-05,2]
[346833438,1735313432722,-2448.50853777,9.964e-05,2]
[346833440,1735313432732,-154.0,0.0001,2]
[346833442,1735313432741,-180.1052301,0.0001,2]
[346833444,1735313432750,-159.59,0.0001,2]
[346833446,1735313432760,-300.0,0.0001,2]
[346833448,1735313432770,-677.49,0.00010008,2]
[346833450,1735313432779,-157.96,0.00010137,2]
[346833452,1735313432789,-436.35,0.000102,2]
[346833454,1735313432798,-2500.0,0.00010302,2]
[346833455,1735313432807,-900.0,0.00010302,2]
[346833458,1735313432818,-509.56,0.0001047,2]
[346833459,1735313432827,-502.326,0.0001049,2]
[346833461,1735313432839,-302.67,0.00010548,2]
[346833463,1735313432849,-978.01,0.000106,2]
[346833465,1735313432859,-150.0,0.000106,2]
[346833467,1735313432868,-150.0,0.000106,2]
[346833469,1735313432878,-899.14,0.000106,2]
[346833471,1735313432887,-1900.0,0.000106,3]
[346833473,1735313432897,-154.87808457,0.00010663,2]
[346833475,1735313432906,-706.2595,0.00010664,2]
[346833477,1735313432916,-150.0,0.000107,2]
[346833479,1735313432926,-978.01,0.000107,2]
[346833481,1735313432935,-300.0,0.000107,2]
[346833483,1735313432945,-3800.0,0.000107,3]
[346833485,1735313432954,-500.0,0.00010762,2]
[346833487,1735313432964,-830.73,0.00010762,2]
[346833489,1735313432974,-12142.08,0.00010762,2]
[346833491,1735313432983,-2876.33,0.00010762,2]
[346833493,1735313432993,-866.53,0.00010762,2]
[346833495,1735313433002,-2819.76,0.00010762,2]
[346833497,1735313433012,-4836.69,0.00010762,2]
[346833499,1735313433022,-638.88,0.00010762,2]
[346833501,1735313433031,-1635.4,0.00010762,2]
[346833503,1735313433041,-500.0,0.00010762,2]
[346833505,1735313433050,-500.0,0.00010762,2]
[346833507,1735313433060,-1598.51,0.00010762,2]
[346833508,1735313433069,-500.0,0.00010762,2]
[346833510,1735313433079,-537.8,0.00010762,2]
[346833512,1735313433093,-577.53,0.00010762,2]
[346833514,1735313433103,-500.0,0.00010762,2]
[346833516,1735313433113,-593.58,0.00010762,2]
[346833518,1735313433123,-500.0,0.00010762,2]
[346833520,1735313433133,-1514.82,0.00010762,2]
[346833522,1735313433143,-1677.79,0.00010763,2]
[346833524,1735313433154,-1203.74,0.00010763,2]
[346833525,1735313433163,-500.0,0.00010763,2]
[346833527,1735313433173,-1076.96,0.00010763,2]
[346833529,1735313433183,-1335.53,0.00010763,2]
[346833531,1735313433196,-529.2,0.00010763,2]
[346833534,1735313433207,-500.0,0.00010763,2]
[346833536,1735313433217,-863.72,0.00010763,2]
[346833537,1735313433226,-915.4,0.00010763,2]
[346833540,1735313433236,-1025.92,0.00010763,2]
[346833541,1735313433246,-500.0,0.00010763,2]
[346833543,1735313433256,-1945.48,0.00010763,2]
[346833545,1735313433265,-500.0,0.00010763,2]
[346833547,1735313433275,-771.28,0.00010763,2]
[346833549,1735313433284,-1447.71,0.00010763,2]
[346833551,1735313433293,-840.81,0.00010763,2]
[346833553,1735313433303,-988.08,0.00010763,2]
[346833555,1735313433313,-1645.47,0.00010763,2]
[346833557,1735313433323,-1126.41,0.00010763,2]
[346833559,1735313433333,-1355.8,0.00010763,2]
[346833561,1735313433344,-1512.29,0.00010763,2]
[346833563,1735313433354,-850.14,0.00010763,2]
[346833565,1735313433364,-739.3,0.00010763,2]
[346833567,1735313433374,-755.74,0.00010763,2]
[346833569,1735313433384,-500.0,0.00010763,2]
[346833571,1735313433394,-500.0,0.00010763,2]
[346833573,1735313433404,-1048.91,0.00010763,2]
[346833575,1735313433413,-545.48,0.00010763,2]
[346833577,1735313433423,-959.34,0.00010763,2]
[346833579,1735313433432,-709.64,0.00010763,2]
[346833581,1735313433443,-1150.05,0.00010763,2]
[346833583,1735313433452,-1330.12,0.00010763,2]
[346833585,1735313433462,-1207.25,0.00010763,2]
[346833587,1735313433472,-152.363359,0.00010763,2]
[346833589,1735313433481,-1855.69571,0.00010763,2]
[346833591,1735313433491,-523.46,0.00010763,2]
[346833593,1735313433500,-938.75,0.00010763,2]
[346833595,1735313433510,-1795.144285,0.00010763,2]
[346833597,1735313433519,-666.36,0.00010763,2]
[346833599,1735313433529,-553.61,0.00010763,2]
[346833601,1735313433538,-849.65,0.00010763,2]
[346833603,1735313433548,-2176.14,0.00010763,2]
[346833605,1735313433559,-1407.53,0.00010763,2]
[346833607,1735313433568,-1150.07,0.00010763,2]
[346833609,1735313433578,-500.0,0.00010763,2]
[346833611,1735313433591,-925.78,0.00010763,2]
[346833613,1735313433601,-1261.5,0.00010763,2]
[346833615,1735313433611,-1228.15,0.00010763,2]
[346833617,1735313433621,-635.6,0.00010763,2]
[346833619,1735313433630,-500.0,0.00010763,2]
[346833621,1735313433639,-2298.73,0.00010763,2]
[346833622,1735313433649,-508.08,0.00010763,2]
[346833624,1735313433659,-1176.42,0.00010763,2]
[346833626,1735313433669,-500.0,0.00010763,2]
[346833628,1735313433679,-783.75,0.00010763,2]
[346833630,1735313433689,-500.0,0.00010763,2]
[346833632,1735313433699,-500.0,0.00010763,2]
[346833634,1735313433708,-857.89,0.00010763,2]
[346833636,1735313433718,-1253.16,0.00010763,2]
[346833638,1735313433727,-500.0,0.00010763,2]
[346833640,1735313433737,-500.0,0.00010763,2]
[346833642,1735313433747,-714.84,0.00010763,2]
[346833644,1735313433757,-1266.81,0.00010763,2]
[346833646,1735313433767,-1800.23,0.00010763,2]
[346833648,1735313433777,-500.0,0.00010763,2]
[346833650,1735313433787,-1269.56,0.00010763,2]
[346833652,1735313433797,-1169.85,0.00010763,2]
[346833654,1735313433807,-741.08,0.00010763,2]
[346833656,1735313433817,-647.76,0.00010763,2]
[346833658,1735313433827,-1081.23,0.00010763,2]
[346833660,1735313433839,-1708.1,0.00010763,2]
[346833662,1735313433850,-612.91,0.00010763,2]
[346833664,1735313433860,-2201.34,0.00010763,2]
[346833666,1735313433870,-1199.02,0.00010763,2]
[346833668,1735313433881,-625.49,0.00010763,2]
[346833670,1735313433891,-960.09,0.00010763,2]
[346833672,1735313433900,-536.04,0.00010763,2]
[346833674,1735313433910,-911.77,0.00010763,2]
[346833676,1735313433920,-957.48,0.00010763,2]
[346833678,1735313433929,-500.0,0.00010763,2]
[346833680,1735313433939,-500.0,0.00010763,2]
[346833682,1735313433949,-11672.69,0.00010763,2]
[346833684,1735313433959,-1672.58,0.00010763,2]
[346833686,1735313433969,-1086.52,0.00010763,2]
[346833688,1735313433978,-500.0,0.00010763,2]
[346833690,1735313433987,-500.0,0.00010763,2]
[346833692,1735313433997,-1304.35,0.00010763,2]
[346833694,1735313434008,-580.33,0.00010763,2]
[346833696,1735313434017,-1403.03,0.00010763,2]
[346833698,1735313434027,-500.0,0.00010763,2]
[346833700,1735313434036,-1596.95,0.00010763,2]
[346833702,1735313434046,-2270.51,0.00010763,2]
[346833704,1735313434055,-500.0,0.00010763,2]
[346833707,1735313434066,-1728.18,0.00010763,2]
[346833708,1735313434075,-962.06,0.00010763,2]
[346833710,1735313434087,-867.6,0.00010763,2]
[346833712,1735313434098,-1241.84,0.00010763,2]
[346833714,1735313434107,-2646.2,0.00010763,2]
[346833716,1735313434117,-831.96,0.00010763,2]
[346833718,1735313434127,-1318.31,0.00010763,2]
[346833720,1735313434137,-694.97,0.00010763,2]
[346833722,1735313434147,-1521.13,0.00010763,2]
[346833724,1735313434157,-600.65,0.00010763,2]
[346833726,1735313434167,-613.12,0.00010763,2]
[346833728,1735313434177,-216.10611077,0.00010763,2]
[346833730,1735313434187,-2044.37,0.00010763,2]
[346833732,1735313434197,-820.2,0.00010763,2]
[346833734,1735313434207,-500.0,0.00010763,2]
[346833736,1735313434219,-1378.59,0.00010763,2]
[346833738,1735313434229,-2094.89,0.00010763,2]
[346833740,1735313434238,-500.0,0.00010763,2]
[346833742,1735313434248,-946.41,0.00010763,2]
[346833744,1735313434258,-1842.35,0.00010763,2]
[346833746,1735313434268,-4908.72,0.00010763,2]
[346833748,1735313434277,-1145.82,0.00010763,2]
[346833750,1735313434287,-1223.51,0.00010763,2]